bitfinex/quotes_SOLUSD_20240808
["timestamp","ask_amount","ask_price","bid_price","bid_amount"]
[1723104378896,6.4726,154.5,154.45,6.4743]
[1723104379394,20.0,154.49,154.44,22.6614]
[1723104379598,20.0,154.49,154.41,6.6598]
[1723104379811,6.473,154.49,154.44,6.4749]
[1723104379997,20.17,154.48,154.42,16.1886]
[1723104380203,65.17,154.47,154.4,6.4765]
[1723104380415,6.4753,154.44,154.39,16.1926]
[1723104380618,26.4756,154.43,154.36,22.4274]
[1723104380801,20.0,154.43,154.38,6.4771]
[1723104381005,385.1,154.46,154.36,6.2316]
[1723104381208,20.0,154.45,154.42,6.4757]
[1723104381513,385.1,154.46,154.43,6.475]
[1723104381717,385.1,154.46,154.42,16.1894]
[1723104381916,6.4746,154.45,154.39,22.6694]
[1723104382119,20.34,154.44,154.36,6.2316]
[1723104382327,51.4754,154.43,154.37,6.4779]
[1723104382614,20.0,154.44,154.36,6.2316]
[1723104383236,26.8146,154.45,154.39,6.477]
[1723104383403,45.0,154.44,154.39,6.477]
[1723104383608,20.34,154.45,154.39,16.1918]
[1723104383808,20.34,154.45,154.41,6.4758]
[1723104384126,6.4751,154.44,154.39,16.1918]
[1723104384321,26.8145,154.45,154.39,22.6687]
[1723104384524,45.0,154.44,154.39,22.6687]
[1723104384909,51.475,154.44,154.39,22.6687]
[1723104385109,45.0,154.44,154.37,6.4777]
[1723104385315,26.8154,154.43,154.37,6.4777]
[1723104385521,26.8154,154.43,154.38,6.4773]
[1723104385713,20.34,154.43,154.38,6.4773]
[1723104385917,20.34,154.43,154.39,6.477]
[1723104387114,20.34,154.43,154.4,6.4765]
[1723104387327,6.4734,154.48,154.43,6.4753]
[1723104387508,20.0,154.47,154.43,6.4753]
[1723104387710,26.4737,154.47,154.42,6.4758]
[1723104388123,26.4737,154.47,154.41,22.6657]
[1723104388517,6.4735,154.48,154.41,16.1896]
[1723104388717,385.1,154.49,154.42,6.4757]
[1723104388903,6.4758,154.43,154.38,6.4774]
[1723104389107,6.4759,154.42,154.37,22.6716]
[1723104389825,6.6454,154.43,154.38,6.4773]
[1723104390029,65.17,154.42,154.38,6.4773]
[1723104391635,45.17,154.42,154.38,6.4773]
[1723104391838,0.17,154.42,154.38,6.4773]
[1723104392028,20.17,154.42,154.38,6.4773]
[1723104392706,20.17,154.42,154.4,6.4766]
[1723104392910,385.1,154.47,154.44,6.4746]
[1723104393222,385.1,154.47,154.35,32.3921]
[1723104393535,6.4754,154.43,154.38,22.6712]
[1723104393832,6.4754,154.43,154.38,16.1937]
[1723104394130,6.4764,154.41,154.36,6.4782]
[1723104394318,0.17,154.4,154.34,16.1974]
[1723104394724,0.17,154.4,154.35,6.4784]
[1723104394921,0.34,154.4,154.31,16.2011]
[1723104395122,6.4783,154.36,154.31,16.2011]
[1723104395327,385.1,154.39,154.3,15.9109]
[1723104395543,65.34,154.38,154.33,16.1989]
[1723104395713,20.0,154.38,154.33,16.1989]
[1723104396336,20.0,154.38,154.34,6.4788]
[1723104396840,6.648,154.37,154.3,32.113]
[1723104397036,0.17,154.36,154.32,6.48]
[1723104397240,26.6484,154.36,154.3,16.2021]
[1723104397420,0.17,154.35,154.3,16.2021]
[1723104397614,0.17,154.35,154.3,22.6826]
[1723104398145,0.17,154.35,154.31,6.4803]
[1723104398440,26.4775,154.38,154.3,16.2021]
[1723104398625,6.648,154.37,154.31,6.48]
[1723104398825,20.17,154.36,154.31,6.48]
[1723104399026,0.17,154.35,154.31,6.48]
[1723104399423,0.17,154.35,154.27,22.3843]
[1723104399630,6.4793,154.34,154.29,6.4811]
[1723104399835,0.34,154.33,154.29,6.4811]
[1723104400211,0.34,154.33,154.28,6.4816]
[1723104400531,65.34,154.33,154.28,6.4816]
[1723104400714,20.34,154.33,154.28,6.4816]
[1723104400920,20.34,154.33,154.3,6.4808]
[1723104401115,20.0,154.33,154.31,6.4803]
[1723104401317,20.0,154.34,154.3,6.4808]
[1723104401842,20.0,154.34,154.31,6.4803]
[1723104402044,20.0,154.36,154.31,6.4803]
[1723104402540,20.0,154.36,154.32,6.4799]
[1723104403542,20.0,154.36,154.33,6.4795]
[1723104403745,20.0,154.36,154.31,22.6801]
[1723104403923,20.0,154.36,154.31,16.2001]
[1723104404118,20.0,154.36,154.34,16.1979]
[1723104404325,385.1,154.41,154.36,6.4783]
[1723104404520,385.1,154.44,154.36,6.4783]
[1723104404819,385.1,154.44,154.34,16.1979]
[1723104405025,36.35,154.42,154.3,16.2011]
[1723104405329,6.4766,154.4,154.35,6.4787]
[1723104405840,20.0,154.39,154.36,6.4783]
[1723104406048,20.0,154.4,154.33,16.1989]
[1723104406339,20.0,154.42,154.36,16.1957]
[1723104406527,22.5626888,154.42,154.32,6.558]
[1723104406714,58.9126888,154.42,154.33,16.1988]
[1723104407046,6.4779,154.38,154.33,16.1988]
[1723104407214,20.0,154.37,154.29,16.2022]
[1723104407418,385.1,154.41,154.31,16.2003]
[1723104407720,6.4775,154.38,154.32,6.4796]
[1723104407926,0.34,154.37,154.33,6.4795]
[1723104408217,20.0,154.37,154.31,16.2003]
[1723104408544,385.1,154.41,154.28,33.70335895]
[1723104408731,385.1,154.41,154.36,6.4783]
[1723104408963,6.4769,154.4,154.35,22.6747]
[1723104409245,6.4788,154.35,154.31,16.2004]
[1723104409546,36.35,154.39,154.31,16.2004]
[1723104409855,6.4783,154.37,154.31,22.6805]
[1723104410033,26.4785,154.36,154.31,22.6805]
[1723104410236,20.34,154.38,154.31,22.6805]
[1723104410237,26.4787,154.35,154.31,16.2004]
[1723104410548,6.478,154.37,154.31,16.2004]
[1723104410847,6.4788,154.35,154.27,22.6974]
[1723104411065,26.6483,154.36,154.31,6.4804]
[1723104411345,20.0,154.36,154.32,6.4799]
[1723104411548,385.1,154.4,154.28,32.4074]
[1723104411735,385.1,154.4,154.35,6.4783]
[1723104411938,430.71651089,154.43,154.35,6.4783]
[1723104412538,6.4763,154.41,154.36,6.4782]
[1723104413023,430.71651089,154.43,154.34,22.6766]
[1723104413024,394.36651089,154.43,154.34,22.6766]
[1723104413648,6.4774,154.39,154.34,16.1978]
[1723104413952,6.4777,154.38,154.34,16.1978]
[1723104414240,6.478,154.37,154.31,6.4801]
[1723104414420,6.478,154.37,154.3,16.2013]
[1723104414621,36.35,154.4,154.27,22.6982]
[1723104414820,20.0,154.42,154.27,22.6982]
[1723104414821,20.0,154.36,154.27,22.6982]
[1723104415120,0.34,154.35,154.27,22.6982]
[1723104415323,52.08104297,154.35,154.25,18.0798245]
[1723104415548,16.1999,154.33,154.25,1.5710245]
[1723104415750,6.4822,154.27,154.25,1.5710245]
[1723104415962,6.4825,154.26,154.25,1.5710245]
[1723104417130,6.4821,154.27,154.25,1.5710245]
[1723104417555,6.4816,154.29,154.25,1.5710245]
[1723104417848,26.4818,154.28,154.25,1.5710245]
[1723104418053,20.0,154.28,154.25,1.5710245]
[1723104418343,20.34,154.3,154.25,1.5710245]
[1723104418545,6.4813,154.29,154.25,1.5710245]
[1723104418747,26.4817,154.28,154.25,1.5710245]
[1723104419525,6.4822,154.27,154.25,1.5710245]
[1723104420663,385.1,154.32,154.27,6.482]
[1723104421453,385.1,154.32,154.26,22.688]
[1723104421749,385.1,154.32,154.26,16.2055]
[1723104422328,385.1,154.32,154.3,6.4807]
[1723104422527,6.74104297,154.35,154.28,16.2034]
[1723104422528,6.74104297,154.35,154.28,16.0737]
[1723104422728,6.4767,154.4,154.35,16.1959]
[1723104422960,6.4775,154.39,154.33,6.4792]
[1723104423140,43.09001419,154.43,154.33,6.4792]
[1723104423327,6.4776,154.38,154.32,22.6798]
[1723104423532,43.09001419,154.43,154.32,16.1999]
[1723104423745,6.4771,154.39,154.35,16.1968]
[1723104423942,6.4771,154.39,154.33,6.4793]
[1723104424336,43.09001419,154.43,154.3,32.4032]
[1723104424530,6.74001419,154.43,154.35,16.1968]
[1723104424750,59.48434839,154.48,154.38,16.1937]
[1723104424939,6.73722807,154.47,154.37,6.3027]
[1723104425137,38.91646784,154.51,154.41,16.1903]
[1723104425339,38.91646784,154.51,154.38,17.17614443]
[1723104425340,6.4758,154.42,154.38,15.8812]
[1723104425644,36.35,154.48,154.37,6.3027]
[1723104425947,16.1844,154.47,154.37,6.3027]
[1723104426146,6.4754,154.43,154.37,6.3027]
[1723104427162,6.4738,154.47,154.42,6.4758]
[1723104427338,6.4731,154.49,154.43,6.4754]
[1723104427859,6.73585828,154.5,154.42,16.1892]
[1723104427860,13.20855828,154.5,154.42,16.1892]
[1723104428166,385.1,154.54,154.45,16.186]
[1723104428351,6.4712,154.54,154.48,6.4732]
[1723104428860,6.4712,154.54,154.48,22.656]
[1723104429062,52.5223,154.59,154.48,22.6562]
[1723104429362,6.4707,154.55,154.49,6.4727]
[1723104429556,6.73059459,154.58,154.48,16.1829]
[1723104429760,6.4706,154.55,154.48,16.1829]
[1723104429941,6.73059459,154.58,154.48,16.1829]
[1723104430261,20.0,154.57,154.48,16.1829]
[1723104430438,6.4712,154.53,154.48,22.6562]
[1723104430629,6.4708,154.54,154.48,22.6562]
[1723104431351,0.17,154.53,154.48,16.1829]
[1723104431573,0.17,154.53,154.47,6.1205]
[1723104431745,6.4738,154.47,154.44,15.3802]
[1723104432050,52.6987,154.53,154.44,15.3802]
[1723104432233,6.472,154.51,154.45,6.4745]
[1723104432433,20.0,154.5,154.46,6.4741]
[1723104432659,20.0,154.52,154.48,6.4732]
[1723104432835,20.0,154.52,154.46,22.6592]
[1723104433046,6.642,154.51,154.46,16.1852]
[1723104433363,36.35,154.49,154.42,6.1745]
[1723104433543,6.4738,154.47,154.42,6.1745]
[1723104433862,20.0,154.46,154.42,6.1745]
[1723104434064,20.0,154.46,154.43,16.188]
[1723104434248,20.0,154.49,154.43,16.188]
[1723104434443,51.8134,154.48,154.43,16.188]
[1723104434758,26.4738,154.47,154.42,6.1745]
[1723104435261,45.0,154.46,154.39,32.591]
[1723104435433,20.0,154.45,154.41,6.4758]
[1723104435637,20.0,154.45,154.4,6.4765]
[1723104435847,20.0,154.45,154.39,32.591]
[1723104436035,20.0,154.47,154.44,6.4746]
[1723104436236,20.0,154.47,154.43,6.4754]
[1723104436436,20.0,154.47,154.42,16.1895]
[1723104436666,20.0,154.47,154.42,22.6649]
[1723104437038,20.0,154.47,154.39,16.3992]
[1723104437242,6.4746,154.45,154.39,22.8762]
[1723104437434,20.0,154.48,154.39,22.8762]
[1723104437435,20.0,154.44,154.42,6.4758]
[1723104437640,20.0,154.48,154.39,16.3992]
[1723104437852,20.0,154.48,154.43,22.6639]
[1723104438162,20.0,154.48,154.39,32.5911]
[1723104438459,20.0,154.51,154.39,32.5911]
[1723104438881,6.4742,154.46,154.4,6.4765]
[1723104439069,6.4767,154.4,154.35,16.1959]
[1723104439237,20.0,154.45,154.38,16.1937]
[1723104439238,20.34,154.45,154.38,16.1937]
[1723104439443,6.73222832,154.44,154.38,16.1937]
[1723104439662,20.0,154.43,154.39,6.4769]
[1723104440161,20.0,154.43,154.38,16.1937]
[1723104440365,20.0,154.43,154.39,6.4769]
[1723104440541,20.0,154.43,154.41,16.1905]
[1723104440741,385.1,154.46,154.41,16.1905]
[1723104440742,20.0,154.45,154.41,16.1905]
[1723104440965,20.0,154.45,154.38,16.1937]
[1723104441169,20.0,154.45,154.42,6.4758]
[1723104441545,20.0,154.46,154.42,6.4758]
[1723104441945,20.0,154.46,154.41,6.4762]
[1723104442142,6.475,154.44,154.4,16.1907]
[1723104442447,6.4747,154.45,154.37,16.1948]
[1723104442670,20.0,154.44,154.39,16.1917]
[1723104442864,20.0,154.44,154.41,6.4761]
[1723104443353,6.4712,154.53,154.41,6.0241]
[1723104443554,6.4712,154.53,154.42,1.63450067]
[1723104443862,6.4712,154.53,154.47,6.4736]
[1723104444058,687.68360844,154.56,154.46,22.6593]
[1723104444059,6.472,154.52,154.46,22.6593]
[1723104444259,6.4711,154.54,154.48,6.473]
[1723104444639,6.4711,154.54,154.46,16.1852]
[1723104444640,6.4712,154.53,154.47,6.4737]
[1723104445265,26.4717,154.52,154.47,6.4737]
[1723104445765,26.4717,154.52,154.46,16.1852]
[1723104445766,20.0,154.52,154.46,16.1852]
[1723104445951,20.0,154.55,154.46,16.1852]
[1723104446273,36.1763,154.55,154.43,31.3828]
[1723104446490,6.4726,154.5,154.44,6.4746]
[1723104446841,6.4726,154.5,154.45,6.4745]
[1723104447041,20.0,154.49,154.43,31.3828]
[1723104447271,36.1763,154.55,154.44,6.4749]
[1723104447447,45.34,154.54,154.44,6.4749]
[1723104447648,20.0,154.53,154.44,6.4749]
[1723104447848,36.35,154.49,154.39,22.6878]
[1723104448054,6.4745,154.46,154.4,12.9726]
[1723104448261,20.0,154.45,154.4,12.9726]
[1723104448469,26.4745,154.45,154.4,12.9726]
[1723104449450,20.0,154.45,154.4,12.9726]
[1723104449652,20.0,154.45,154.41,6.476]
[1723104449867,385.1,154.51,154.41,16.1898]
[1723104450066,6.4733,154.49,154.43,6.4753]
[1723104450276,6.4738,154.47,154.42,6.4757]
[1723104450573,20.0,154.46,154.43,6.4752]
[1723104450756,20.0,154.46,154.41,16.1898]
[1723104451072,20.0,154.46,154.44,6.4749]
[1723104451375,6.4729,154.49,154.44,6.4749]
[1723104451575,6.4739,154.47,154.42,6.4758]
[1723104451878,20.0,154.46,154.43,6.4752]
[1723104452079,6.4728,154.5,154.45,6.4745]
[1723104452287,20.0,154.49,154.45,6.4745]
[1723104452487,20.0,154.49,154.44,16.1867]
[1723104452778,20.0,154.5,154.47,6.4733]
[1723104452958,20.0,154.51,154.48,6.4733]
[1723104453150,6.4708,154.54,154.49,6.4728]
[1723104453571,6.4712,154.53,154.48,6.4732]
[1723104454460,444.35940844,154.56,154.46,16.1846]
[1723104454655,6.4716,154.53,154.47,6.4736]
[1723104454854,6.4719,154.52,154.47,6.4736]
[1723104455377,6.4713,154.53,154.48,6.4732]
[1723104455596,6.4716,154.52,154.46,16.1846]
[1723104455768,20.0,154.51,154.46,16.1846]
[1723104456454,20.0,154.54,154.46,16.1846]
[1723104456659,0.34,154.53,154.46,16.1846]
[1723104456880,20.0,154.54,154.46,16.1846]
[1723104457178,20.0,154.54,154.5,6.4724]
[1723104457674,20.0,154.54,154.49,22.655]
[1723104457898,20.0,154.54,154.5,7.76655921]
[1723104458057,20.0,154.54,154.49,22.655]
[1723104458376,26.4708,154.54,154.49,22.655]
[1723104458871,26.4708,154.54,154.49,16.1822]
[1723104459072,26.4708,154.54,154.46,16.2067]
[1723104459073,20.0,154.54,154.46,16.2067]
[1723104459279,6.4745,154.46,154.41,31.7462]
[1723104459574,6.4738,154.47,154.41,31.7462]
[1723104459780,36.35,154.5,154.44,6.4749]
[1723104459955,42.8228,154.5,154.44,6.4749]
[1723104460157,20.0,154.49,154.44,6.4749]
[1723104460354,26.4729,154.49,154.43,22.6627]
[1723104460585,6.4733,154.48,154.43,22.6627]
[1723104460754,20.0,154.49,154.45,16.1856]
[1723104460961,43.0837657,154.56,154.47,6.4737]
[1723104461187,20.34,154.54,154.48,6.4732]
[1723104461362,26.8108,154.54,154.48,6.4732]
[1723104461762,6.4712,154.53,154.48,6.4732]
[1723104461957,20.0,154.52,154.48,6.4732]
[1723104462173,20.0,154.52,154.47,6.4737]
[1723104462875,26.4718,154.52,154.47,6.4737]
[1723104463359,20.0,154.52,154.45,16.1856]
[1723104463560,20.0,154.52,154.47,6.4734]
[1723104464261,20.0,154.52,154.47,16.1835]
[1723104464464,20.0,154.55,154.48,6.4732]
[1723104464665,20.0,154.55,154.49,6.4729]
[1723104464980,6.4708,154.54,154.47,16.1835]
[1723104465152,20.0,154.53,154.47,16.1835]
[1723104465557,6.4708,154.54,154.49,6.4728]
[1723104466464,6.4712,154.53,154.48,6.4733]
[1723104466772,6.4708,154.54,154.48,6.4733]
[1723104467175,6.4708,154.54,154.49,6.4728]
[1723104467572,16.1739,154.57,154.47,16.1835]
[1723104467774,6.4713,154.53,154.47,22.6568]
[1723104467974,6.4721,154.51,154.47,16.1835]
[1723104468186,0.34,154.54,154.49,6.4725]
[1723104468187,6.4708,154.54,154.49,6.4725]
[1723104468576,6.4709,154.54,154.49,6.4726]
[1723104468995,20.0,154.56,154.5,6.4722]
[1723104468996,26.4703,154.56,154.5,6.4722]
[1723104469695,20.0,154.56,154.51,6.472]
[1723104469987,20.0,154.57,154.51,6.472]
[1723104470296,6.4712,154.53,154.49,16.1814]
[1723104471163,6.4719,154.52,154.46,16.1853]
[1723104471469,6.4712,154.53,154.48,6.4732]
[1723104471680,6.4712,154.53,154.42,32.3772]
[1723104471681,0.17,154.56,154.49,16.1819]
[1723104471863,0.17,154.57,154.49,16.1819]
[1723104472373,0.17,154.57,154.47,6.4736]
[1723104472963,0.17,154.57,154.46,16.1852]
[1723104473262,45.17,154.57,154.46,16.1852]
[1723104473482,6.4709,154.54,154.49,6.4725]
[1723104474577,6.4709,154.54,154.48,22.6556]
[1723104474775,6.4709,154.54,154.49,6.4729]
[1723104475573,6.6404,154.55,154.5,6.4724]
[1723104475783,20.0,154.54,154.5,6.4724]
[1723104475987,26.4708,154.54,154.49,6.4728]
[1723104479813,20.0,154.54,154.48,16.1824]
[1723104480089,20.0,154.57,154.48,16.1824]
[1723104480303,20.0,154.57,154.41,15.5564]
[1723104480304,81.69,154.56,154.41,15.5564]
[1723104480490,52.5289,154.53,154.41,15.5564]
[1723104480700,65.34,154.52,154.42,16.1892]
[1723104480878,26.4086,154.52,154.42,16.1892]
[1723104481074,20.34,154.52,154.46,6.474]
[1723104481498,6.4726,154.5,154.45,16.1864]
[1723104481882,0.34,154.52,154.41,31.7462]
[1723104482100,6.4741,154.46,154.41,38.222]
[1723104482697,6.4737,154.47,154.41,22.6656]
[1723104483005,6.4733,154.48,154.42,6.4756]
[1723104483208,430.27,154.52,154.43,16.1876]
[1723104483414,6.4726,154.5,154.45,6.4745]
[1723104483596,6.4726,154.5,154.43,16.1876]
[1723104483597,20.0,154.51,154.46,6.4741]
[1723104483791,26.4722,154.51,154.46,6.4741]
[1723104483980,26.4722,154.51,154.45,22.66]
[1723104483981,6.4724,154.5,154.45,22.66]
[1723104484386,20.0,154.51,154.46,6.474]
[1723104484387,26.4721,154.51,154.46,6.474]
[1723104484814,20.0,154.51,154.45,16.1855]
[1723104485807,6.4729,154.49,154.45,16.1855]
[1723104486109,6.4725,154.5,154.45,22.6598]
[1723104486403,20.17,154.52,154.45,16.1855]
[1723104486604,20.17,154.52,154.46,6.4741]
[1723104486605,6.472,154.51,154.46,6.4741]
[1723104486813,20.0,154.5,154.46,6.4741]
[1723104487007,26.4726,154.5,154.45,22.66]
[1723104487189,20.0,154.5,154.46,6.4739]
[1723104487515,20.0,154.5,154.47,6.4737]
[1723104487809,20.0,154.51,154.47,6.4737]
[1723104487998,6.471,154.54,154.49,6.4728]
[1723104488200,6.471,154.54,154.47,16.1835]
[1723104488201,6.4715,154.53,154.48,6.4732]
[1723104488707,43.08238062,154.56,154.47,22.6571]
[1723104489205,6.4721,154.51,154.47,16.1835]
[1723104489414,61.177,154.55,154.44,16.1873]
[1723104489587,0.34,154.54,154.44,16.1873]
[1723104490282,20.34,154.54,154.44,16.1873]
[1723104490482,45.0,154.53,154.44,16.1873]
[1723104490683,20.0,154.52,154.48,6.4732]
[1723104490913,20.0,154.52,154.47,16.1843]
[1723104491412,20.34,154.54,154.47,16.1843]
[1723104491616,6.4721,154.51,154.46,6.474]
[1723104491914,6.4725,154.5,154.45,6.4745]
[1723104492087,20.0,154.49,154.39,6.5329]
[1723104492299,6.4749,154.45,154.4,6.4763]
[1723104492690,0.17,154.46,154.36,16.1233]
[1723104492890,6.4754,154.43,154.36,16.1233]
[1723104493112,6.475,154.44,154.36,16.1233]
[1723104493391,6.475,154.44,154.38,6.4774]
[1723104493596,6.4755,154.43,154.38,6.4774]
[1723104494020,6.475,154.44,154.38,6.4774]
[1723104494196,6.475,154.44,154.39,6.477]
[1723104495006,6.4746,154.45,154.4,6.4766]
[1723104495394,6.8145,154.46,154.39,6.4767]
[1723104495593,26.4746,154.45,154.39,6.4767]
[1723104496219,20.0,154.45,154.4,6.4764]
[1723104496828,45.0,154.49,154.42,6.4756]
[1723104497015,2.57634931,154.49,154.46,16.1843]
[1723104497310,2.57634931,154.49,154.37,32.3883]
[1723104497311,6.4729,154.49,154.37,32.3883]
[1723104497522,6.4729,154.49,154.38,65.34]
[1723104498089,36.35,154.53,154.46,6.474]
[1723104498300,0.17,154.52,154.38,66.63478252]
[1723104498495,20.17,154.52,154.38,66.63478252]
[1723104498708,20.17,154.52,154.42,16.1894]
[1723104498928,20.17,154.52,154.39,16.1925]
[1723104499111,52.5313,154.5,154.4,6.4765]
[1723104499415,65.34,154.49,154.4,6.4765]
[1723104499718,65.34,154.49,154.41,6.4761]
[1723104499719,6.4742,154.46,154.41,6.4761]
[1723104499889,0.34,154.47,154.42,6.4757]
[1723104500095,20.0,154.47,154.41,16.1896]
[1723104500405,65.0,154.49,154.41,16.1896]
[1723104500723,6.4733,154.48,154.41,16.1896]
[1723104501418,6.4733,154.48,154.42,6.4757]
[1723104501596,20.17,154.49,154.41,16.1896]
[1723104501907,45.17,154.48,154.41,16.1896]
[1723104502115,0.17,154.47,154.41,16.1896]
[1723104502317,20.17,154.47,154.41,16.1896]
[1723104502501,0.17,154.46,154.39,6.4767]
[1723104502705,45.17,154.46,154.39,6.4767]
[1723104502894,6.475,154.44,154.39,6.4767]
[1723104506116,6.475,154.44,154.37,16.1939]
[1723104506921,6.475,154.44,154.38,6.4771]
[1723104507116,6.4756,154.43,154.38,6.4771]
[1723104507500,6.4759,154.42,154.37,22.6717]
[1723104509039,6.4753,154.44,154.38,6.4774]
[1723104509208,20.34,154.43,154.37,16.1939]
[1723104509598,26.8156,154.43,154.38,6.4774]
[1723104510710,20.0,154.43,154.39,6.4769]
[1723104510916,20.0,154.44,154.4,6.4764]
[1723104511114,26.41459084,154.51,154.4,16.1916]
[1723104511115,43.08608812,154.5,154.4,16.1916]
[1723104511315,43.08608812,154.5,154.42,6.4757]
[1723104511316,6.4739,154.47,154.42,6.4757]
[1723104511520,38.87314974,154.5,154.43,6.4754]
[1723104511808,9.2586965,154.5,154.43,16.1884]
[1723104512019,9.2586965,154.5,154.43,22.6638]
[1723104512216,6.4737,154.47,154.4,16.1916]
[1723104512608,6.4742,154.46,154.41,6.4759]
[1723104512814,6.4742,154.46,154.4,22.6681]
[1723104513226,20.0,154.45,154.4,22.6681]
[1723104514536,20.0,154.45,154.4,16.1916]
[1723104514725,26.6437,154.47,154.42,6.4757]
[1723104514925,26.6437,154.47,154.41,6.4761]
[1723104515835,6.4749,154.45,154.4,16.1916]
[1723104516540,6.6445,154.46,154.4,16.1916]
[1723104516737,6.475,154.44,154.4,16.1916]
[1723104516955,26.4746,154.45,154.4,22.6682]
[1723104517123,6.4751,154.44,154.39,6.477]
[1723104517438,6.4751,154.44,154.36,16.1233]
[1723104517439,20.0,154.45,154.37,16.1946]
[1723104517612,0.34,154.44,154.36,16.1233]
[1723104517813,34.7262,154.42,154.36,16.1233]
[1723104518140,28.25,154.42,154.37,6.4777]
[1723104518633,28.25,154.42,154.38,6.4774]
[1723104518835,34.7259,154.42,154.36,22.6012]
[1723104519233,34.7259,154.42,154.35,22.3293]
[1723104519234,34.727,154.4,154.35,16.1962]
[1723104519430,34.7276,154.38,154.32,38.1678]
[1723104519633,34.7276,154.38,154.33,6.4795]
[1723104519822,34.7276,154.38,154.32,38.1677]
[1723104520223,34.7276,154.38,154.33,6.4795]
[1723104520442,28.25,154.38,154.33,6.4795]
[1723104521727,6.6471,154.39,154.33,6.4795]
[1723104521928,6.6471,154.39,154.29,32.4058]
[1723104521929,0.17,154.38,154.29,16.203]
[1723104522131,0.17,154.38,154.26,22.6888]
[1723104522132,36.34,154.36,154.26,22.6888]
[1723104522335,45.17,154.35,154.24,6.483]
[1723104522524,36.34,154.33,154.25,8.0536245]
[1723104522721,65.17,154.32,154.25,8.0536245]
[1723104522933,0.17,154.31,154.25,8.0536245]
[1723104523125,6.6505,154.31,154.25,8.0536245]
[1723104523325,0.17,154.3,154.25,8.0536245]
[1723104523757,0.17,154.3,154.26,6.4824]
[1723104524068,26.4801,154.32,154.27,6.4819]
[1723104524350,26.4801,154.32,154.25,17.7784245]
[1723104524351,0.34,154.31,154.25,17.7784245]
[1723104524655,20.0,154.32,154.27,6.482]
[1723104525122,26.48,154.32,154.27,6.482]
[1723104525326,0.17,154.31,154.25,1.5710245]
[1723104525533,6.4825,154.26,154.25,1.5710245]
[1723104525732,26.4825,154.26,154.25,1.5710245]
[1723104525942,26.8225,154.26,154.25,1.5710245]
[1723104527064,20.34,154.26,154.25,1.5710245]
[1723104527234,20.0,154.26,154.25,1.5710245]
[1723104527433,45.0,154.31,154.25,1.5710245]
[1723104527630,2.61288881,154.32,154.25,1.5710245]
[1723104527962,6.4804,154.31,154.25,8.0535245]
[1723104528456,391.5797,154.33,154.27,6.4821]
[1723104528762,9.10212553,154.33,154.26,22.6886]
[1723104529842,9.10212553,154.33,154.27,6.4821]
[1723104530148,9.10212553,154.33,154.25,1.5710245]
[1723104530149,6.4809,154.3,154.25,1.5710245]
[1723104530351,6.4809,154.3,154.25,8.0539245]
[1723104530648,20.0,154.32,154.25,24.2609245]
[1723104530649,26.48,154.32,154.25,24.2609245]
[1723104531035,26.48,154.32,154.26,6.4822]